bitfinex/quotes_ETHUSD_20250329
["timestamp","ask_amount","ask_price","bid_price","bid_amount"]
[1743279348194,5.49069,1821.3,1820.9,20.51693545]
[1743279348493,5.49069,1821.3,1820.9,15.02526545]
[1743279348815,5.49088,1821.2,1820.9,8.70865545]
[1743279349015,0.327,1821.2,1820.8,5.49192]
[1743279349190,0.327,1821.2,1820.9,5.49175]
[1743279350589,5.49065,1821.3,1820.9,5.49175]
[1743279351214,8.679,1821.4,1821.1,5.49105]
[1743279351419,8.679,1821.4,1821.1,6.30425]
[1743279351823,8.679,1821.4,1821.1,5.49105]
[1743279352704,14.16928,1821.4,1821.0,5.49148]
[1743279353914,5.49071,1821.3,1820.9,5.49176]
[1743279354315,5.49092,1821.2,1820.8,5.49194]
[1743279354529,5.81821,1821.1,1820.7,6.30557]
[1743279355803,5.81821,1821.1,1820.6,5.49268]
[1743279356040,5.352,1821.0,1820.7,5.49235]
[1743279356199,10.84361,1821.0,1820.6,5.49268]
[1743279356404,0.327,1820.9,1820.5,5.49297]
[1743279356831,5.81882,1820.9,1820.5,5.49297]
[1743279357348,5.81882,1820.9,1820.4,19.69503545]
[1743279357533,11.31084,1820.9,1820.4,14.20174545]
[1743279357831,5.49223,1820.8,1820.4,14.20174545]
[1743279358044,6.623335,1820.8,1820.4,14.20174545]
[1743279358335,12.115675,1820.8,1820.4,8.70865545]
[1743279358541,0.28503395,1822.0,1821.3,0.8132]
[1743279358738,1.50116701,1821.5,1821.4,15.06688373]
[1743279358938,1.50116701,1821.5,1821.4,15.01199545]
[1743279359144,1.50116701,1821.5,1821.3,5.49043]
[1743279359303,1.50116701,1821.5,1821.2,6.30407]
[1743279359631,1.50116701,1821.5,1821.2,0.8132]
[1743279359931,0.327,1821.4,1821.1,14.19967545]
[1743279360133,0.327,1821.4,1821.1,19.69072545]
[1743279360333,0.327,1821.4,1821.2,5.49086]
[1743279360532,0.327,1821.4,1821.3,5.49058]
[1743279360857,0.327,1821.4,1821.2,10.98172]
[1743279361534,3.327,1821.8,1821.3,5.49058]
[1743279361707,8.395,1821.7,1821.4,5.49001]
[1743279361902,8.395,1821.7,1821.6,5.48967]
[1743279362233,8.394,1821.7,1821.6,5.48967]
[1743279362443,8.394,1821.7,1821.5,5.48998]
[1743279364039,3.0,1821.7,1821.5,5.48998]
[1743279364239,8.388,1821.7,1821.5,5.48998]
[1743279366307,8.388,1821.7,1821.5,10.97976]
[1743279366533,8.388,1821.7,1821.5,5.48978]
[1743279367219,8.388,1821.7,1821.5,10.97953]
[1743279367417,0.327,1822.0,1821.3,0.8132]
[1743279367617,5.719,1822.2,1821.7,0.8267]
[1743279367832,5.719,1822.2,1822.0,5.48831]
[1743279368236,5.719,1822.2,1821.9,10.9774]
[1743279368438,5.719,1822.2,1822.0,5.48843]
[1743279368819,5.719,1822.2,1822.0,5.48828]
[1743279369419,8.719,1822.2,1822.1,5.48817]
[1743279370215,8.392,1822.2,1822.1,5.48817]
[1743279371969,29.07,1822.3,1822.2,5.48787]
[1743279372122,5.385,1822.5,1822.1,7.412505]
[1743279372329,5.385,1822.5,1822.2,5.48774]
[1743279372521,5.48768,1822.3,1821.9,0.8267]
[1743279372727,5.48768,1822.3,1821.8,14.19745545]
[1743279372728,5.81507,1822.2,1821.5,8.70865545]
[1743279372939,5.391,1822.1,1821.7,10.97821]
[1743279373220,5.391,1822.1,1821.7,10.97825]
[1743279373419,6.511607,1822.1,1821.7,5.48908]
[1743279373615,11.999807,1822.1,1821.7,5.48908]
[1743279373850,6.511607,1822.1,1821.7,5.48908]
[1743279374350,6.511607,1822.1,1821.8,5.48903]
[1743279374547,9.511607,1822.1,1821.9,5.48861]
[1743279374752,8.391,1822.1,1821.9,5.48861]
[1743279375127,8.391,1822.1,1821.9,10.97716]
[1743279375655,0.327,1822.4,1822.3,5.48757]
[1743279375826,34.455,1822.5,1822.4,5.48726]
[1743279376148,37.455,1822.5,1822.3,5.48744]
[1743279376649,40.70677743,1822.5,1822.1,6.3148]
[1743279376950,37.455,1822.5,1822.1,5.4881]
[1743279377169,0.327,1822.4,1822.1,5.4881]
[1743279377524,0.277,1822.4,1822.1,5.4881]
[1743279378467,0.277,1822.4,1822.1,5.48793]
[1743279378749,0.277,1822.4,1822.2,5.48775]
[1743279379161,0.277,1822.4,1822.1,5.48793]
[1743279379162,0.277,1822.4,1822.1,10.97582]
[1743279379944,0.277,1822.4,1822.2,5.48784]
[1743279381945,5.658,1822.4,1822.2,5.48784]
[1743279382452,32.059,1822.5,1822.3,5.48736]
[1743279382669,32.059,1822.5,1822.4,5.48726]
[1743279384958,0.277,1822.8,1822.6,5.48655]
[1743279385145,5.379,1822.9,1822.7,5.48636]
[1743279385326,3.0,1822.8,1822.7,5.48636]
[1743279386544,3.0,1822.8,1822.5,5.48693]
[1743279386745,7.57883529,1822.8,1822.4,5.48711]
[1743279386939,0.277,1822.7,1822.4,5.48711]
[1743279387157,0.277,1822.7,1822.4,10.97412]
[1743279387955,0.277,1822.7,1822.4,10.97416]
[1743279388149,0.277,1822.7,1822.4,10.97408]
[1743279389026,0.277,1822.7,1822.5,5.48695]
[1743279391488,0.277,1822.7,1822.4,10.9741]
[1743279392770,0.277,1822.7,1822.4,5.48701]
[1743279394474,0.277,1822.7,1822.0,9.50735545]
[1743279394475,5.48758,1822.3,1822.0,9.50735545]
[1743279394676,5.48758,1822.3,1821.9,5.48865]
[1743279394843,4.01793529,1822.2,1821.8,5.48891]
[1743279395041,9.50594529,1822.2,1821.8,5.48891]
[1743279396472,5.4882,1822.1,1821.6,6.28836]
[1743279396674,5.76579,1821.9,1821.4,6.2865]
[1743279396875,5.48911,1821.8,1821.4,11.77665]
[1743279397050,5.76579,1821.9,1821.5,5.48995]
[1743279397442,5.76579,1821.9,1821.4,6.2865]
[1743279397443,5.76579,1821.9,1821.4,5.4901]
[1743279397661,9.23024529,1821.8,1821.3,10.98101]
[1743279398176,9.23024529,1821.8,1821.4,5.49028]
[1743279399258,9.23024529,1821.8,1821.3,5.49044]
[1743279399453,5.48951,1821.7,1821.3,5.49044]
[1743279399662,5.48981,1821.6,1821.2,8.25619754]
[1743279399874,10.84681,1821.6,1821.2,8.25619754]
[1743279400058,10.84681,1821.6,1821.2,6.28716]
[1743279401060,10.84681,1821.6,1821.2,11.77781]
[1743279401580,10.84681,1821.6,1821.2,6.28705]
[1743279403780,10.84681,1821.6,1821.2,11.77778]
[1743279403981,10.84681,1821.6,1821.2,6.28705]
[1743279404983,5.357,1821.6,1821.3,5.49051]
[1743279407354,5.634,1821.6,1821.3,5.49051]
[1743279407788,11.12382,1821.6,1821.2,1.974223]
[1743279407955,11.12382,1821.6,1821.2,6.668613]
[1743279414453,11.12382,1821.6,1821.2,5.49079]
[1743279417994,0.277,1821.8,1821.6,5.48943]
[1743279418284,3.0,1821.7,1821.6,5.48967]
[1743279418485,3.0,1821.7,1821.5,5.48992]
[1743279419188,5.76609,1821.8,1821.4,6.28926]
[1743279419495,5.48982,1821.6,1821.2,6.28986]
[1743279420394,5.48939,1821.7,1821.3,5.49055]
[1743279420556,11.16761229,1821.8,1821.2,6.28986]
[1743279420762,5.48948,1821.7,1821.3,5.49058]
[1743279420958,0.277,1821.8,1821.3,0.628958]
[1743279421295,5.628,1821.8,1821.5,5.48975]
[1743279421495,5.628,1821.8,1821.5,5.4899]
[1743279422065,5.628,1821.8,1821.5,5.48976]
[1743279422261,33.75354882,1822.1,1821.9,5.48858]
[1743279422262,29.062,1822.1,1821.9,5.48858]
[1743279422679,0.277,1822.2,1821.9,5.48858]
[1743279424495,0.277,1822.2,1821.8,6.28807]
[1743279424801,5.76499,1822.2,1821.8,7.465813]
[1743279425105,0.277,1822.2,1821.8,7.465583]
[1743279425401,0.277,1822.2,1821.9,5.48875]
[1743279426498,0.277,1822.2,1821.8,7.465583]
[1743279426700,11.25312,1822.2,1821.8,6.666583]
[1743279426902,5.765,1822.2,1821.8,6.666583]
[1743279427198,0.277,1822.2,1821.9,0.6666583]
[1743279427599,0.277,1822.2,1821.9,6.1553983]
[1743279428400,5.76489,1822.2,1821.8,5.48884]
[1743279428571,3.0,1822.1,1821.6,9.47215545]
[1743279428774,5.76591,1821.9,1821.6,8.70865545]
[1743279429174,11.11591,1821.9,1821.6,8.70865545]
[1743279429818,16.60493,1821.9,1821.6,8.70865545]
[1743279430198,5.48915,1821.8,1821.6,8.70865545]
[1743279430501,5.48937,1821.7,1821.6,8.70865545]
[1743279430703,5.48937,1821.7,1821.3,5.49032]
[1743279432214,5.76676,1821.6,1821.2,5.49087]
[1743279433917,5.49011,1821.5,1821.1,14.19982545]
[1743279434212,5.49011,1821.5,1821.1,21.187118]
[1743279434384,5.76676,1821.6,1821.1,15.695948]
[1743279434584,5.76676,1821.6,1821.2,5.49088]
[1743279435312,5.49007,1821.5,1821.1,15.695948]
[1743279435510,5.49007,1821.5,1821.1,6.98729255]
[1743279435711,5.49007,1821.5,1821.1,5.49096]
[1743279436218,0.277,1821.4,1820.9,5.49158]
[1743279436391,0.277,1821.4,1821.0,5.49147]
[1743279436787,5.76755,1821.4,1821.0,5.49147]
[1743279437799,0.277,1821.4,1820.8,9.47215545]
[1743279438120,0.277,1821.4,1821.3,5.49058]
[1743279438289,5.35,1821.5,1821.2,5.49063]
[1743279438484,5.48986,1821.6,1820.9,15.147591]
[1743279438485,5.627,1821.8,1821.5,5.4899]
[1743279439106,5.48941,1821.7,1821.3,5.49057]
[1743279439641,5.48941,1821.7,1821.3,10.98114]
[1743279439951,5.48941,1821.7,1821.3,5.49057]
[1743279440086,5.48941,1821.7,1821.3,10.98093]
[1743279440399,5.48941,1821.7,1821.3,5.49036]
[1743279441929,5.48941,1821.7,1821.3,10.98078]
[1743279442429,5.48941,1821.7,1821.4,5.49027]
[1743279442635,11.11611,1821.8,1821.4,5.49027]
[1743279442847,18.19670443,1821.8,1821.4,5.49027]
[1743279444398,12.70739443,1821.8,1821.4,5.49027]
[1743279446003,18.19669443,1821.8,1821.4,5.49027]
[1743279446204,5.48953,1821.7,1821.3,5.49036]
[1743279446428,5.48968,1821.6,1821.3,5.49036]
[1743279446635,5.48953,1821.7,1821.3,5.49036]
[1743279448534,3.74093529,1821.6,1821.2,9.47215545]
[1743279448738,5.49041,1821.4,1821.0,6.31607]
[1743279448907,6.067151,1821.4,1821.0,6.31607]
[1743279449108,5.49059,1821.3,1820.8,15.02514545]
[1743279449341,20.64843629,1821.4,1821.0,5.49123]
[1743279449520,5.49074,1821.3,1820.9,5.49175]
[1743279449725,5.49161,1821.0,1820.6,0.8246]
[1743279449920,5.4918,1820.9,1820.5,5.49298]
[1743279450241,5.7688,1820.9,1820.5,5.49298]
[1743279450442,5.7688,1820.9,1820.4,20.51967545]
[1743279450647,5.7688,1820.9,1820.4,22.571643]
[1743279451237,3.277,1820.9,1820.4,11.585223]
[1743279451447,3.277,1820.9,1820.5,10.9856]
[1743279451759,8.76881,1820.9,1820.5,5.49296]
[1743279452046,3.277,1820.9,1820.5,5.49296]
[1743279452749,3.0,1820.9,1820.6,0.05492477]
[1743279453054,3.0,1820.9,1820.6,5.49263]
[1743279454229,3.0,1820.9,1820.7,5.49238]
[1743279454431,3.0,1820.9,1820.6,5.49262]
[1743279454646,3.0,1820.9,1820.7,5.4922]
[1743279455520,0.277,1821.1,1820.8,0.7874]
[1743279455745,3.0,1821.2,1820.8,0.7874]
[1743279456248,3.0,1821.2,1820.8,6.27936]
[1743279456425,3.0,1821.2,1820.9,5.49178]
[1743279457548,14.85966529,1821.3,1820.9,6.668894]
[1743279457845,3.0,1821.2,1820.9,6.668894]
[1743279458460,3.0,1821.2,1820.9,6.668664]
[1743279461861,8.491,1821.2,1820.9,1.177114]
[1743279462059,8.491,1821.2,1820.7,14.20102545]
[1743279462060,5.49119,1821.1,1820.7,14.20102545]
[1743279462477,5.49119,1821.1,1820.7,19.69328545]
[1743279462964,9.23212529,1821.1,1820.7,14.20091545]
[1743279463156,5.76851,1821.0,1820.7,14.20091545]
[1743279463736,9.23282529,1820.9,1820.7,8.70865545]
[1743279464552,14.72484529,1820.9,1820.7,8.70865545]
[1743279464762,5.49209,1820.8,1820.7,8.70865545]
[1743279465067,9.09193529,1820.9,1820.7,8.70865545]
[1743279465434,14.58374529,1820.9,1820.7,8.70865545]
[1743279466375,14.58374529,1820.9,1820.5,5.49278]
[1743279466543,14.58374529,1820.9,1820.5,6.670126]
[1743279466870,0.41557686,1821.4,1820.7,5.49221]
[1743279467077,5.351,1821.3,1821.1,5.49117]
[1743279467271,7.01793529,1821.6,1821.2,5.49088]
[1743279467568,7.01793529,1821.6,1821.1,5.54597885]
[1743279467569,5.351,1821.5,1821.1,5.54597885]
[1743279467758,10.84114,1821.5,1821.1,6.17845674]
[1743279467946,3.0,1821.4,1821.1,0.63247789]
[1743279468370,17.72177529,1821.4,1821.0,5.49132]
[1743279468575,14.72177529,1821.4,1821.0,5.49132]
[1743279468771,5.7678,1821.3,1820.8,6.27072]
[1743279468959,3.74093529,1821.2,1820.8,6.27072]
[1743279469164,14.72311529,1821.2,1820.8,5.49192]
[1743279469345,9.23201529,1821.2,1820.8,5.49192]
[1743279469545,14.72315529,1821.2,1820.7,14.20091545]
[1743279469758,14.72315529,1821.2,1820.7,12.48241155]
[1743279469952,5.76882,1820.9,1820.5,15.37873145]
[1743279470157,9.23314529,1820.8,1820.5,8.70865545]
[1743279470363,9.23314529,1820.8,1820.4,6.29213]
[1743279470886,14.72547529,1820.8,1820.4,6.29213]
[1743279471050,9.23314529,1820.8,1820.4,5.49323]
[1743279472275,16.22565882,1820.8,1820.4,5.49323]
[1743279472669,5.4924,1820.7,1820.3,6.29222]
[1743279472979,0.277,1820.6,1820.3,10.987]
[1743279473150,5.351,1820.7,1820.3,5.49341]
[1743279473347,5.351,1820.7,1820.4,6.29217]
[1743279473549,5.351,1820.7,1820.3,5.49341]
[1743279473775,5.351,1820.7,1820.4,5.49304]
[1743279473943,5.351,1820.7,1820.4,10.98618]
[1743279474577,5.351,1820.7,1820.3,6.122771]
[1743279474881,0.277,1820.6,1820.3,5.49354]
[1743279475676,0.277,1820.6,1820.2,10.9878]
[1743279476669,0.277,1820.6,1820.3,5.49356]
[1743279478886,4.01793529,1820.8,1820.2,0.7989]
[1743279479066,11.1197,1821.0,1820.6,6.29158]
[1743279479247,1.11197,1820.9,1820.6,5.49263]
[1743279479451,20.35240529,1821.0,1820.6,5.49263]
[1743279479765,14.86063529,1821.0,1820.5,5.49288]
[1743279479972,5.49186,1820.9,1820.5,5.49288]
[1743279483077,0.277,1821.0,1820.6,5.54758522]
[1743279483281,29.073,1821.2,1821.0,5.49127]
[1743279483491,29.073,1821.2,1820.7,6.29127]
[1743279483492,5.628,1821.4,1821.1,5.49102]
[1743279483875,3.0,1821.3,1821.1,5.49102]
[1743279484073,8.49059,1821.3,1820.9,5.49166]
[1743279484280,3.0,1821.3,1821.0,5.49132]
[1743279484573,3.0,1821.3,1820.9,5.49159]
[1743279485385,3.0,1821.3,1821.0,5.4914]
[1743279486982,0.277,1821.4,1821.0,8.70865545]
[1743279487183,5.628,1821.6,1821.4,5.49015]
[1743279487390,5.351,1821.6,1821.2,5.49076]
[1743279487559,10.84077,1821.6,1821.2,5.49076]
[1743279487755,5.49001,1821.5,1821.1,6.29496]
[1743279487954,5.76742,1821.4,1820.9,14.20019545]
[1743279488186,11.25796,1821.4,1820.9,10.98311]
[1743279488686,5.76739,1821.4,1820.9,10.98314]
[1743279488886,5.49058,1821.3,1820.9,10.98314]
[1743279489187,5.76739,1821.4,1820.9,12.95231955]
[1743279489558,5.76739,1821.4,1821.0,5.49142]
[1743279491583,9.23172529,1821.3,1820.9,5.49154]
[1743279491783,5.76805,1821.2,1820.8,14.20072545]
[1743279492103,0.277,1821.2,1820.8,14.20051545]
[1743279492393,5.627,1821.2,1820.9,5.49167]
[1743279492594,11.11789,1821.2,1820.7,6.29638]
[1743279492800,3.74093529,1821.1,1820.7,6.29638]
[1743279493094,11.11789,1821.2,1820.7,6.29619]
[1743279493304,5.35,1821.1,1821.0,5.49135]
[1743279493512,5.35,1821.1,1821.0,5.49148]
[1743279493805,5.35,1821.1,1820.9,5.49175]
[1743279494462,8.627,1821.4,1821.1,5.49102]
[1743279494662,0.277,1821.4,1821.2,5.49085]
[1743279494877,11.11669,1821.6,1821.2,6.039775]
[1743279495066,11.11669,1821.6,1821.2,5.49069]
[1743279495897,5.627,1821.6,1821.3,5.49052]
[1743279496298,3.74093529,1821.7,1821.3,6.29438]
[1743279496506,9.09093529,1821.7,1821.3,6.29438]
[1743279497192,5.349,1821.7,1821.4,5.49002]
[1743279497875,5.349,1821.7,1821.5,5.48979]
[1743279498974,10.8386,1821.7,1821.3,6.29457]
[1743279499181,14.57953529,1821.7,1821.3,5.49057]
[1743279499511,14.57953529,1821.7,1821.0,14.98216545]
[1743279499512,9.23108529,1821.5,1821.0,14.98216545]
[1743279499664,3.74093529,1821.5,1821.2,5.49077]
[1743279499864,3.277,1821.6,1821.3,5.49056]
[1743279501395,8.76675,1821.6,1821.2,5.49077]
[1743279501600,9.23098529,1821.5,1821.1,5.49101]
[1743279502100,14.72121529,1821.5,1821.1,5.49101]
[1743279502306,0.277,1821.4,1821.1,5.49101]
[1743279504216,3.74093529,1821.3,1821.0,8.70865545]
[1743279504392,9.23168529,1821.3,1821.0,8.70865545]
[1743279504599,10.73159982,1821.3,1821.0,8.70865545]
[1743279505404,3.74093529,1821.3,1821.0,14.20001545]
[1743279505714,3.74093529,1821.3,1821.1,5.49097]
[1743279505913,3.74093529,1821.3,1821.0,14.20001545]
[1743279506303,3.74093529,1821.3,1821.0,8.70865545]
[1743279506488,5.49089,1821.2,1821.0,8.70865545]
[1743279506682,5.49089,1821.2,1820.8,5.49188]
[1743279506887,0.277,1821.1,1820.8,5.49188]
[1743279507596,10.08607429,1821.1,1820.6,11.76741]
[1743279507930,0.277,1820.8,1820.5,5.49298]
[1743279508089,5.76911,1820.8,1820.4,14.20193545]
[1743279508293,0.277,1820.8,1820.4,8.70865545]
[1743279508795,0.277,1820.8,1820.4,14.20193545]
[1743279509206,0.277,1820.8,1820.5,5.4927]
[1743279509421,5.626,1820.8,1820.5,5.4927]
[1743279511722,5.626,1820.8,1820.4,15.622139]
[1743279512089,11.11809,1820.8,1820.4,21.115289]
[1743279512417,5.626,1820.8,1820.5,5.49296]
[1743279515745,0.277,1821.0,1820.6,0.05492791]
[1743279515889,5.626,1821.2,1821.0,5.49138]
[1743279516090,0.277,1821.2,1821.0,10.98274]
[1743279516343,3.0,1821.3,1821.0,5.49136]
[1743279516627,14.85725529,1821.4,1820.9,5.4917]
[1743279516805,5.4906,1821.3,1820.9,5.4917]
[1743279516994,3.0,1821.3,1821.1,5.49115]
[1743279517405,3.0,1821.3,1821.0,5.4914]
[1743279518191,3.0,1821.3,1821.1,5.49114]
[1743279518392,0.277,1821.6,1821.3,5.49058]
[1743279518723,5.626,1821.8,1821.4,5.4901]
[1743279518929,3.0,1821.7,1821.4,5.4901]
[1743279519423,5.48945,1821.7,1821.3,5.49043]
[1743279519639,5.48978,1821.6,1821.2,5.49074]
[1743279520127,9.23038529,1821.7,1821.2,10.98143]
[1743279520327,5.626,1821.8,1821.5,5.48987]
[1743279520640,5.626,1821.8,1821.6,5.4896]
[1743279520849,3.0,1821.8,1821.4,0.8101]
[1743279521000,8.625,1822.0,1821.7,5.48937]
[1743279521699,0.277,1822.2,1822.0,5.48847]
[1743279521899,0.277,1822.4,1822.1,5.48817]
[1743279522208,3.0,1822.4,1822.2,5.48786]
[1743279522409,38.15793529,1822.5,1822.1,5.48817]
[1743279522939,3.0,1822.4,1822.1,6.585834]
[1743279523237,0.28373871,1823.8,1823.7,5.48335]
[1743279523400,8.71e-06,1823.8,1823.7,9.41131306]
[1743279523599,9.22092529,1824.9,1824.3,5.4814]
[1743279523897,3.74093529,1824.7,1824.1,5.48189]
[1743279524099,8.48211,1824.2,1823.5,15.00246545]
[1743279524312,3.74093529,1824.1,1823.7,5.48306]
[1743279524521,3.74093529,1824.3,1823.8,5.48286]
[1743279524701,3.37409353,1824.2,1823.8,5.48286]
[1743279525631,0.37409353,1824.2,1823.6,14.19202545]
[1743279525798,3.37409353,1824.2,1823.6,14.19202545]
[1743279526130,3.37409353,1824.2,1823.7,5.48321]
[1743279526302,8.85600353,1824.2,1823.7,5.48321]
[1743279526502,0.88560035,1824.1,1823.7,5.48321]
[1743279526704,0.88560035,1824.1,1823.7,5.53803679]
[1743279526903,3.37409353,1824.2,1823.7,5.53803679]
[1743279527129,5.405,1824.1,1823.6,14.19202545]
[1743279527321,5.405,1824.1,1823.6,19.67549545]
[1743279527934,5.405,1824.1,1823.6,10.96684]
[1743279528256,5.405,1824.1,1823.7,0.054828]
[1743279528421,6.53111135,1824.1,1823.7,0.054828]
[1743279528730,6.52611135,1824.1,1823.7,0.054828]
[1743279528935,6.52611135,1824.1,1823.7,5.48319]
[1743279529515,1.12611135,1824.1,1823.7,5.48319]
[1743279529808,6.52311135,1824.1,1823.7,5.48319]
[1743279530522,6.52311135,1824.1,1823.4,5.48412]
[1743279530523,5.48276,1823.9,1823.4,5.48412]
[1743279530708,5.48337,1823.7,1823.3,14.19306545]
[1743279530905,8.395,1823.7,1823.2,9.53415545]
[1743279531126,19.36202,1823.7,1823.2,14.19348545]
[1743279531329,1.52205138,1823.6,1823.2,14.19348545]
[1743279531528,7.00572138,1823.6,1823.0,14.19409545]
[1743279531732,8.4842,1823.5,1823.0,14.19409545]
[1743279532038,8.4842,1823.5,1823.0,14.19403545]
[1743279532337,3.0,1823.5,1823.3,5.48453]
[1743279532510,3.0,1823.3,1823.1,5.48496]
[1743279534360,2.24339173,1824.0,1823.6,5.48351]
[1743279534563,5.681,1823.9,1823.5,5.4839]
[1743279535266,5.404,1823.9,1823.6,5.48362]
[1743279536127,10.88694,1823.9,1823.4,10.96803]
[1743279536313,10.88694,1823.9,1823.5,5.4839]
[1743279537347,5.404,1823.9,1823.5,5.4839]
[1743279538244,5.395,1824.1,1823.6,5.48365]
[1743279538439,3.0,1824.0,1823.7,5.48321]
[1743279540544,8.395,1824.1,1823.7,5.48313]
[1743279540853,4.2133046,1823.8,1823.4,8.70865545]
[1743279541061,5.48484,1823.3,1822.8,10.97183]
[1743279541354,5.76198,1823.2,1822.8,1.96804854]
[1743279541558,5.76198,1823.2,1822.7,5.48636]
[1743279541559,5.48528,1823.1,1822.7,5.48636]
[1743279541758,5.48561,1823.0,1822.5,5.4869]
[1743279541955,3.0,1822.9,1822.3,9.49915545]
[1743279542145,8.406,1822.9,1822.5,5.48668]
[1743279542565,3.0,1822.9,1822.5,5.48668]
[1743279542729,3.0,1822.9,1822.5,6.035348]
[1743279543433,8.4859,1822.9,1822.4,5.48714]
[1743279543630,8.48682,1822.6,1822.2,9.36723885]
[1743279543831,13.89482,1822.6,1822.2,6.1464034]
[1743279544529,19.38162,1822.6,1822.2,0.6585834]
[1743279544731,19.38162,1822.6,1822.1,6.585604]
[1743279544925,3.0,1822.4,1822.1,1.097664]
[1743279545131,8.48743,1822.4,1822.0,5.48846]
[1743279545357,8.48743,1822.4,1821.9,10.97729]
[1743279545529,3.0,1822.4,1822.0,5.4884]
[1743279546825,3.0,1822.4,1821.9,10.9772]
[1743279546826,8.48747,1822.4,1821.9,10.9772]
[1743279547031,8.48747,1822.4,1821.9,12.07492]
[1743279547234,4.4903046,1822.1,1821.3,14.19908545]
[1743279547432,5.48952,1821.7,1821.2,14.19934545]
[1743279547665,5.4892,1821.8,1821.3,5.49055]
[1743279548159,5.4894,1821.7,1821.2,14.19934545]
[1743279548362,5.4898,1821.6,1821.2,8.70865545]
[1743279548555,5.4898,1821.6,1821.3,0.87086555]
[1743279548752,8.48999,1821.5,1821.1,8.70865545]
[1743279549064,13.98018,1821.5,1821.0,5.49126]
[1743279549529,5.49064,1821.3,1820.9,5.49178]
[1743279554767,5.49064,1821.3,1820.6,0.8051]
[1743279554768,5.4913,1821.1,1820.6,5.49247]
[1743279554935,5.4913,1821.1,1820.6,5.49244]
[1743279554936,0.277,1821.1,1820.6,5.49244]
[1743279555264,0.277,1821.1,1820.7,6.041474]
[1743279555646,0.277,1821.1,1820.8,5.49195]
[1743279556047,9.7038846,1821.3,1821.0,5.49148]
[1743279556048,0.277,1821.3,1821.0,5.49148]
[1743279556366,5.425,1821.2,1821.0,5.49148]
[1743279556563,8.425,1821.2,1821.0,5.49148]
[1743279556964,0.277,1821.6,1821.2,5.49088]
[1743279557169,9.9792146,1821.9,1821.4,5.48999]
[1743279557463,5.48992,1821.6,1821.2,8.70865545]
[1743279557634,5.48992,1821.6,1821.2,10.12860899]
[1743279558040,3.0,1821.5,1821.2,10.12860899]
[1743279558339,3.0,1821.5,1821.2,1.41995354]
[1743279558870,3.0,1821.5,1821.2,6.91077354]
[1743279559269,3.0,1821.5,1821.2,1.41995354]
[1743279559458,5.43,1821.7,1821.3,0.05490361]
[1743279559677,5.4898,1821.6,1821.0,0.549148]
[1743279559850,5.7675,1821.4,1821.0,5.49147]
[1743279560542,5.4906,1821.3,1820.9,14.20017545]
[1743279560741,5.4906,1821.3,1820.9,19.69181545]
[1743279560988,5.4906,1821.3,1820.9,14.20017545]
[1743279561349,11.25796,1821.4,1820.9,14.20017545]
[1743279561571,5.4906,1821.3,1820.9,14.20017545]
[1743279561781,5.4906,1821.3,1820.9,16.24720099]
[1743279562449,10.9216,1821.3,1820.9,16.24720099]
[1743279563047,10.9216,1821.3,1820.9,7.53854554]
[1743279563572,5.431,1821.3,1820.9,7.53854554]
[1743279563774,0.277,1821.4,1821.2,5.49062]
[1743279563945,8.425,1821.6,1821.3,5.49045]
[1743279568776,8.425,1821.6,1821.1,5.49096]
[1743279568777,13.91483,1821.6,1821.1,5.49096]
[1743279568984,5.49017,1821.5,1821.0,5.49148]
[1743279569154,5.49003,1821.5,1821.1,5.49117]
[1743279569349,5.49003,1821.5,1821.1,10.9821]
[1743279569677,5.49003,1821.5,1821.1,12.08031]
[1743279570281,13.91468,1821.6,1821.2,5.49075]
[1743279571579,5.49004,1821.5,1821.1,12.08019]
[1743279571783,5.49004,1821.5,1821.1,6.58914]
[1743279571953,5.49004,1821.5,1821.1,5.49093]
[1743279572447,8.425,1821.6,1821.2,5.4906]
[1743279572652,8.425,1821.6,1821.2,10.98134]
[1743279572852,8.4897,1821.6,1821.2,5.4906]
[1743279573062,5.399,1821.5,1821.2,5.4906]
[1743279576986,8.49031,1821.4,1821.0,5.49141]
[1743279577195,3.0,1821.4,1821.0,2.1738621]
[1743279577361,3.0,1821.4,1821.2,5.49072]
[1743279578490,3.277,1821.7,1821.4,5.49001]
[1743279578782,3.0,1821.5,1821.2,11.7377]
[1743279578956,8.76638,1821.7,1821.3,5.49043]
[1743279579353,3.277,1821.7,1821.4,5.4901]
[1743279579786,0.5508,1822.2,1821.9,5.48877]
[1743279579955,0.277,1822.4,1822.0,0.0548792]
[1743279580287,0.277,1822.4,1822.2,5.48784]
[1743279580585,3.277,1822.6,1822.2,8.27825762]
[1743279580789,5.716,1822.8,1822.3,2.79041762]
[1743279580984,3.0,1822.7,1822.4,5.48711]
[1743279581185,8.439,1822.7,1822.3,5.48727]
[1743279581486,13.92536,1822.7,1822.3,5.48727]
[1743279581872,5.48715,1822.5,1822.1,5.48816]
[1743279582187,7.2133046,1822.6,1822.1,5.48799]
[1743279582188,3.0,1822.4,1822.1,5.48799]
[1743279582360,3.0,1822.4,1822.2,5.48767]
[1743279583559,3.0,1822.6,1822.2,5.48767]
[1743279583770,4.392551,1822.6,1822.2,5.48767]
[1743279584389,9.879341,1822.6,1822.2,5.48767]
[1743279584687,3.0,1822.4,1822.0,14.19706545]
[1743279584883,3.0,1822.4,1822.0,14.19689545]
[1743279585092,5.429,1822.3,1822.0,14.19689545]